[Event "Late-Titled-Tuesday-Blitz-April-16-2024"]
[Site "Chess.com"]
[Date "2024.04.16"]
[Round "9"]
[White "prochn"]
[Black "HajiyevKanan"]
[Result "1-0"]
[WhiteElo "2458"]
[BlackElo "2581"]
[TimeControl "180+1"]
[EndTime "15:44:18 PDT"]
[Termination "prochn won by resignation"]

1. d4 {[%clk 0:03:00.9]} 1... d5 {[%clk 0:02:49.8]} 2. c4 {[%clk 0:03:00.2]}
2... c6 {[%clk 0:02:49.8]} 3. Nf3 {[%clk 0:02:58.5]} 3... Nf6 {[%clk 0:02:50.4]}
4. g3 {[%clk 0:02:58.5]} 4... a6 {[%clk 0:02:50.9]} 5. Bg2 {[%clk 0:02:57.7]}
5... Bf5 {[%clk 0:02:51.5]} 6. cxd5 {[%clk 0:02:52.8]} 6... cxd5 {[%clk
0:02:51.3]} 7. Qb3 {[%clk 0:02:48.4]} 7... Qd7 {[%clk 0:02:37.1]} 8. Ne5 {[%clk
0:02:40.7]} 8... Qb5 {[%clk 0:02:37.2]} 9. Qxb5+ {[%clk 0:02:35.6]} 9... axb5
{[%clk 0:02:38.1]} 10. Nc3 {[%clk 0:02:33.5]} 10... Nc6 {[%clk 0:02:19.3]} 11.
Nxb5 {[%clk 0:02:22.1]} 11... Rc8 {[%clk 0:02:13.8]} 12. Nxc6 {[%clk 0:02:14.5]}
12... bxc6 {[%clk 0:02:09.7]} 13. Nc3 {[%clk 0:02:09.5]} 13... e6 {[%clk
0:02:10.3]} 14. Bd2 {[%clk 0:02:03.3]} 14... Rb8 {[%clk 0:02:08.1]} 15. Na4
{[%clk 0:01:58.8]} 15... Bd6 {[%clk 0:02:05.3]} 16. Rc1 {[%clk 0:01:54.2]} 16...
Kd7 {[%clk 0:02:02.7]} 17. b3 {[%clk 0:01:52.4]} 17... Ba3 {[%clk 0:02:00.9]}
18. Ra1 {[%clk 0:01:47.4]} 18... Rhc8 {[%clk 0:02:00.3]} 19. O-O {[%clk
0:01:42]} 19... Ne4 {[%clk 0:01:59]} 20. Bf4 {[%clk 0:01:41.8]} 20... Rb4 {[%clk
0:01:54.3]} 21. f3 {[%clk 0:01:32.6]} 21... Nf6 {[%clk 0:01:47.6]} 22. e4 {[%clk
0:01:08.8]} 22... dxe4 {[%clk 0:01:35.3]} 23. fxe4 {[%clk 0:01:09.7]} 23... Nxe4
{[%clk 0:01:24.8]} 24. Bxe4 {[%clk 0:01:08.9]} 24... Bxe4 {[%clk 0:01:25.3]} 25.
Nc5+ {[%clk 0:01:09.1]} 25... Ke7 {[%clk 0:01:23.7]} 26. Nxe4 {[%clk 0:01:09.1]}
26... Rxd4 {[%clk 0:01:22.9]} 27. Ng5 {[%clk 0:00:53.7]} 27... f6 {[%clk
0:01:13.4]} 28. Nf3 {[%clk 0:00:52.5]} 28... Rd3 {[%clk 0:01:10.3]} 29. Rad1
{[%clk 0:00:51.6]} 29... Rcd8 {[%clk 0:01:07.9]} 30. Rxd3 {[%clk 0:00:49.5]}
30... Rxd3 {[%clk 0:01:08.8]} 31. Kf2 {[%clk 0:00:48.9]} 31... e5 {[%clk
0:01:09.2]} 32. Be3 {[%clk 0:00:48.8]} 32... Rc3 {[%clk 0:01:08.4]} 33. Rd1
{[%clk 0:00:46]} 33... Rc2+ {[%clk 0:01:08.8]} 34. Rd2 {[%clk 0:00:46.2]} 34...
Rc3 {[%clk 0:01:09.5]} 35. Ke2 {[%clk 0:00:45.5]} 35... Bb4 {[%clk 0:01:08.6]}
36. Ne1 {[%clk 0:00:23.4]} 36... Ke6 {[%clk 0:01:03.5]} 37. Rc2 {[%clk
0:00:20.3]} 37... Rxe3+ {[%clk 0:00:48]} 38. Kxe3 {[%clk 0:00:21.2]} 38... Bxe1
{[%clk 0:00:48.6]} 39. Rxc6+ {[%clk 0:00:21.5]} 39... Kd5 {[%clk 0:00:49.2]} 40.
Rc7 {[%clk 0:00:21.8]} 40... g5 {[%clk 0:00:49.3]} 41. Rxh7 {[%clk 0:00:21.7]}
41... f5 {[%clk 0:00:49.9]} 42. Ke2 {[%clk 0:00:19.8]} 42... Bc3 {[%clk
0:00:49.6]} 43. Rd7+ {[%clk 0:00:19.6]} 43... Ke4 {[%clk 0:00:49.9]} 44. Rc7
{[%clk 0:00:19.5]} 44... Bd4 {[%clk 0:00:49.9]} 45. a4 {[%clk 0:00:19.1]} 45...
f4 {[%clk 0:00:50.5]} 46. gxf4 {[%clk 0:00:18.7]} 46... gxf4 {[%clk 0:00:51.2]}
47. Rf7 {[%clk 0:00:18]} 47... Bc3 {[%clk 0:00:50.8]} 48. h4 {[%clk 0:00:17]}
48... Kd5 {[%clk 0:00:48.7]} 49. h5 {[%clk 0:00:17]} 49... Ke6 {[%clk
0:00:49.2]} 50. Rc7 {[%clk 0:00:16.7]} 50... Bb4 {[%clk 0:00:44.7]} 51. h6
{[%clk 0:00:16]} 51... e4 {[%clk 0:00:42.6]} 52. h7 {[%clk 0:00:15.3]} 52... f3+
{[%clk 0:00:43]} 53. Ke3 {[%clk 0:00:14.5]} 53... Bd6 {[%clk 0:00:43]} 54. Rc4
{[%clk 0:00:12.3]} 54... Bf4+ {[%clk 0:00:37.8]} 55. Kxf4 {[%clk 0:00:11]} 55...
f2 {[%clk 0:00:38.3]} 56. Rc1 {[%clk 0:00:10.5]} 1-0

[Event "Late-Titled-Tuesday-Blitz-April-16-2024"]
[Site "Chess.com"]
[Date "2024.04.16"]
[Round "9"]
[White "subham777"]
[Black "Bkmzzzzz"]
[Result "0-1"]
[WhiteElo "2521"]
[BlackElo "2404"]
[TimeControl "180+1"]
[EndTime "15:44:21 PDT"]
[Termination "Bkmzzzzz won by resignation"]

1. e4 {[%clk 0:03:00.9]} 1... d6 {[%clk 0:02:59]} 2. Nc3 {[%clk 0:03:00.6]} 2...
Nf6 {[%clk 0:02:55.8]} 3. d4 {[%clk 0:03:00.2]} 3... e5 {[%clk 0:02:55.1]} 4.
Be3 {[%clk 0:02:48.5]} 4... Be7 {[%clk 0:02:50.9]} 5. g3 {[%clk 0:02:41.7]} 5...
c6 {[%clk 0:02:50.6]} 6. Bg2 {[%clk 0:02:41.4]} 6... O-O {[%clk 0:02:50.5]} 7.
Nge2 {[%clk 0:02:41.6]} 7... b5 {[%clk 0:02:46.8]} 8. a3 {[%clk 0:02:39.3]} 8...
a5 {[%clk 0:02:44.3]} 9. O-O {[%clk 0:02:38.3]} 9... Nbd7 {[%clk 0:02:44]} 10.
h3 {[%clk 0:02:37]} 10... Qc7 {[%clk 0:02:42.1]} 11. f4 {[%clk 0:02:36]} 11...
Bb7 {[%clk 0:02:31.9]} 12. f5 {[%clk 0:02:33]} 12... b4 {[%clk 0:02:29.5]} 13.
axb4 {[%clk 0:02:28]} 13... axb4 {[%clk 0:02:30.4]} 14. Na4 {[%clk 0:02:25.9]}
14... d5 {[%clk 0:02:07.3]} 15. dxe5 {[%clk 0:02:20.2]} 15... Nxe5 {[%clk
0:02:03.1]} 16. exd5 {[%clk 0:02:14.3]} 16... Nxd5 {[%clk 0:02:04]} 17. Bd4
{[%clk 0:02:08.9]} 17... f6 {[%clk 0:01:55.6]} 18. Nf4 {[%clk 0:01:58.4]} 18...
Nxf4 {[%clk 0:01:51.6]} 19. Rxf4 {[%clk 0:01:59.3]} 19... Rfd8 {[%clk
0:00:41.1]} 20. Qh5 {[%clk 0:01:53.7]} 20... c5 {[%clk 0:00:32.8]} 21. Bxe5
{[%clk 0:01:38.9]} 21... fxe5 {[%clk 0:00:29.3]} 22. Rh4 {[%clk 0:01:34.6]}
22... Bxh4 {[%clk 0:00:27.8]} 23. Qxh4 {[%clk 0:01:30.8]} 23... Bxg2 {[%clk
0:00:27.6]} 24. Kxg2 {[%clk 0:01:31]} 24... Qc6+ {[%clk 0:00:19.1]} 25. Kg1
{[%clk 0:01:29.6]} 25... Rd2 {[%clk 0:00:19.5]} 26. Qc4+ {[%clk 0:01:19.8]}
26... Kh8 {[%clk 0:00:19.2]} 27. Qf1 {[%clk 0:01:20.4]} 27... Rxa4 {[%clk
0:00:18.8]} 28. Re1 {[%clk 0:01:14.3]} 28... Qd5 {[%clk 0:00:18.5]} 29. f6
{[%clk 0:01:11.9]} 29... Qf7 {[%clk 0:00:17.3]} 30. Qf5 {[%clk 0:00:54]} 30...
gxf6 {[%clk 0:00:16.6]} 31. Rf1 {[%clk 0:00:38.6]} 31... Kg7 {[%clk 0:00:16.1]}
32. b3 {[%clk 0:00:19.3]} 32... Ra8 {[%clk 0:00:15.7]} 33. Qf3 {[%clk
0:00:14.8]} 33... Rad8 {[%clk 0:00:15.2]} 34. h4 {[%clk 0:00:13.7]} 34... Qg6
{[%clk 0:00:15.1]} 35. h5 {[%clk 0:00:13.5]} 35... Qg5 {[%clk 0:00:15]} 36. h6+
{[%clk 0:00:12.4]} 36... Kxh6 {[%clk 0:00:14.7]} 37. Re1 {[%clk 0:00:11]} 37...
Kg7 {[%clk 0:00:14.7]} 38. Re4 {[%clk 0:00:09.6]} 38... Rd1+ {[%clk 0:00:14.4]}
39. Kh2 {[%clk 0:00:10]} 39... R8d2+ {[%clk 0:00:14.1]} 40. Kh3 {[%clk
0:00:10.2]} 40... h5 {[%clk 0:00:13.2]} 41. Rh4 {[%clk 0:00:08.8]} 41... Kg6
{[%clk 0:00:12.9]} 42. Qa8 {[%clk 0:00:05.8]} 42... Qf5+ {[%clk 0:00:09.6]} 43.
g4 {[%clk 0:00:05.9]} 43... Qf1+ {[%clk 0:00:09.3]} 44. Kg3 {[%clk 0:00:04.2]}
44... Qf2+ {[%clk 0:00:08.9]} 45. Kh3 {[%clk 0:00:04]} 45... Qe3+ {[%clk
0:00:09.3]} 0-1

[Event "Late-Titled-Tuesday-Blitz-April-16-2024"]
[Site "Chess.com"]
[Date "2024.04.16"]
[Round "9"]
[White "Zavgorodniy_Sergiy"]
[Black "KNVB"]
[Result "1-0"]
[WhiteElo "2630"]
[BlackElo "2773"]
[TimeControl "180+1"]
[EndTime "15:44:23 PDT"]
[Termination "Zavgorodniy_Sergiy won by checkmate"]

1. d4 {[%clk 0:03:00.9]} 1... e5 {[%clk 0:02:59.7]} 2. dxe5 {[%clk 0:03:00.7]}
2... Nc6 {[%clk 0:03:00.4]} 3. Nf3 {[%clk 0:02:59.6]} 3... Qe7 {[%clk
0:03:00.8]} 4. Bg5 {[%clk 0:02:59.3]} 4... Qb4+ {[%clk 0:03:00.9]} 5. Bd2 {[%clk
0:02:59.2]} 5... Qxb2 {[%clk 0:03:01.6]} 6. Nc3 {[%clk 0:02:58.7]} 6... Bb4
{[%clk 0:03:02.4]} 7. Rb1 {[%clk 0:02:58]} 7... Qxc3 {[%clk 0:03:03.1]} 8. Bxc3
{[%clk 0:02:58]} 8... Bxc3+ {[%clk 0:03:04]} 9. Nd2 {[%clk 0:02:58]} 9... Nxe5
{[%clk 0:03:04.9]} 10. e3 {[%clk 0:02:57.3]} 10... Nf6 {[%clk 0:03:05.1]} 11.
Bd3 {[%clk 0:02:51.6]} 11... O-O {[%clk 0:03:05.4]} 12. O-O {[%clk 0:02:50.9]}
12... d5 {[%clk 0:03:06]} 13. Rb3 {[%clk 0:02:45.7]} 13... Ba5 {[%clk
0:03:05.9]} 14. Nf3 {[%clk 0:02:43.2]} 14... Nxf3+ {[%clk 0:03:04.7]} 15. Qxf3
{[%clk 0:02:38.7]} 15... Bb6 {[%clk 0:03:01.6]} 16. Bf5 {[%clk 0:02:35.2]} 16...
Bxf5 {[%clk 0:02:58.2]} 17. Qxf5 {[%clk 0:02:36.1]} 17... Rae8 {[%clk
0:02:57.7]} 18. Rd1 {[%clk 0:02:33.4]} 18... Re6 {[%clk 0:02:14.3]} 19. h3
{[%clk 0:02:26.5]} 19... g6 {[%clk 0:02:14.3]} 20. Qf3 {[%clk 0:02:22.6]} 20...
Rc6 {[%clk 0:01:53.9]} 21. a4 {[%clk 0:02:11.7]} 21... Kg7 {[%clk 0:01:51.1]}
22. Rd2 {[%clk 0:02:05.6]} 22... Re8 {[%clk 0:01:45.4]} 23. g4 {[%clk 0:01:49]}
23... Ne4 {[%clk 0:01:42.2]} 24. Rxd5 {[%clk 0:01:46.4]} 24... Rf6 {[%clk
0:01:42.8]} 25. Qe2 {[%clk 0:01:35.1]} 25... c6 {[%clk 0:00:13.8]} 26. Rd7
{[%clk 0:01:33.8]} 26... Nc5 {[%clk 0:00:10.8]} 27. Rd1 {[%clk 0:01:24.8]} 27...
Nxa4 {[%clk 0:00:05.4]} 28. Rbd3 {[%clk 0:01:15.6]} 28... Nb2 {[%clk 0:00:03.8]}
29. Rd7 {[%clk 0:01:09.5]} 29... Nxd1 {[%clk 0:00:04]} 30. Qxd1 {[%clk
0:01:09.2]} 30... Kg8 {[%clk 0:00:02.4]} 31. Rxb7 {[%clk 0:01:06.1]} 31... Rf8
{[%clk 0:00:02.3]} 32. Kg2 {[%clk 0:01:01.5]} 32... Re6 {[%clk 0:00:02.7]} 33.
Qd7 {[%clk 0:00:57.1]} 33... c5 {[%clk 0:00:02.1]} 34. c4 {[%clk 0:00:53.1]}
34... Ree8 {[%clk 0:00:02.3]} 35. h4 {[%clk 0:00:51.2]} 35... Rb8 {[%clk
0:00:02.2]} 36. Rxb8 {[%clk 0:00:48.5]} 36... Rxb8 {[%clk 0:00:03.1]} 37. h5
{[%clk 0:00:49.1]} 37... gxh5 {[%clk 0:00:02.3]} 38. gxh5 {[%clk 0:00:50]} 38...
h6 {[%clk 0:00:02.2]} 39. Qg4+ {[%clk 0:00:37.7]} 39... Kh7 {[%clk 0:00:02.1]}
40. Qf5+ {[%clk 0:00:36.2]} 40... Kg8 {[%clk 0:00:02.2]} 41. e4 {[%clk
0:00:36.1]} 41... Re8 {[%clk 0:00:02.4]} 42. f4 {[%clk 0:00:34.8]} 42... Re6
{[%clk 0:00:02.7]} 43. e5 {[%clk 0:00:34.5]} 43... Bd8 {[%clk 0:00:02.7]} 44.
Kg3 {[%clk 0:00:32.5]} 44... Bc7 {[%clk 0:00:02.2]} 45. Qd3 {[%clk 0:00:32.4]}
45... Kg7 {[%clk 0:00:02.2]} 46. Qd5 {[%clk 0:00:31.9]} 46... Bb6 {[%clk
0:00:02.2]} 47. f5 {[%clk 0:00:32.2]} 47... Re8 {[%clk 0:00:02.5]} 48. e6 {[%clk
0:00:31.1]} 48... fxe6 {[%clk 0:00:02.9]} 49. fxe6 {[%clk 0:00:31.7]} 49... Kf6
{[%clk 0:00:03.1]} 50. Qd7 {[%clk 0:00:24]} 50... Re7 {[%clk 0:00:02.1]} 51. Qc8
{[%clk 0:00:21.5]} 51... Rxe6 {[%clk 0:00:01.5]} 52. Qf8+ {[%clk 0:00:20.4]}
52... Ke5 {[%clk 0:00:02.1]} 53. Qf4# {[%clk 0:00:20.3]} 1-0

[Event "Late-Titled-Tuesday-Blitz-April-16-2024"]
[Site "Chess.com"]
[Date "2024.04.16"]
[Round "9"]
[White "ploxoi"]
[Black "Glidzhian_Gor"]
[Result "1-0"]
[WhiteElo "2410"]
[BlackElo "2547"]
[TimeControl "180+1"]
[EndTime "15:44:26 PDT"]
[Termination "ploxoi won by checkmate"]

1. d4 {[%clk 0:03:00.9]} 1... Nf6 {[%clk 0:00:55.1]} 2. c4 {[%clk 0:02:49.7]}
2... c5 {[%clk 0:00:56]} 3. d5 {[%clk 0:02:49]} 3... b5 {[%clk 0:00:56.2]} 4.
cxb5 {[%clk 0:02:48.1]} 4... a6 {[%clk 0:00:56.9]} 5. bxa6 {[%clk 0:02:47.9]}
5... Bxa6 {[%clk 0:00:57.8]} 6. Nf3 {[%clk 0:02:48.1]} 6... d6 {[%clk
0:00:58.5]} 7. g3 {[%clk 0:02:48.8]} 7... h5 {[%clk 0:00:58.6]} 8. Bg2 {[%clk
0:02:49.4]} 8... h4 {[%clk 0:00:59.5]} 9. Nxh4 {[%clk 0:02:49.1]} 9... Nbd7
{[%clk 0:01:00.1]} 10. Nf3 {[%clk 0:02:49.1]} 10... g6 {[%clk 0:01:00.5]} 11.
O-O {[%clk 0:02:49.1]} 11... Bg7 {[%clk 0:01:01.3]} 12. Nc3 {[%clk 0:02:49.2]}
12... Ng4 {[%clk 0:01:01.9]} 13. h3 {[%clk 0:02:47.3]} 13... Nge5 {[%clk
0:01:02.6]} 14. Nxe5 {[%clk 0:02:45.8]} 14... Nxe5 {[%clk 0:01:03.5]} 15. Rb1
{[%clk 0:02:42.3]} 15... Qc8 {[%clk 0:01:03.5]} 16. Bf4 {[%clk 0:02:31.8]} 16...
Rxh3 {[%clk 0:01:00.2]} 17. Qa4+ {[%clk 0:02:15.9]} 17... Kf8 {[%clk 0:00:59.6]}
18. Bxh3 {[%clk 0:02:10.9]} 18... Qxh3 {[%clk 0:00:59.9]} 19. Bxe5 {[%clk
0:02:08.1]} 19... Bxe5 {[%clk 0:01:00.8]} 20. Qh4 {[%clk 0:02:07.4]} 20... Qxh4
{[%clk 0:01:00.9]} 21. gxh4 {[%clk 0:02:05.9]} 21... Rb8 {[%clk 0:01:00.4]} 22.
Rfe1 {[%clk 0:01:57.5]} 22... Rb4 {[%clk 0:01:00.1]} 23. e4 {[%clk 0:01:52.1]}
23... Kg7 {[%clk 0:00:56]} 24. a3 {[%clk 0:01:43.2]} 24... Rb3 {[%clk
0:00:55.4]} 25. Red1 {[%clk 0:01:39.3]} 25... Bc8 {[%clk 0:00:51]} 26. Kg2
{[%clk 0:01:28.3]} 26... c4 {[%clk 0:00:51.1]} 27. a4 {[%clk 0:01:27.5]} 27...
f5 {[%clk 0:00:50.1]} 28. a5 {[%clk 0:01:20.4]} 28... fxe4 {[%clk 0:00:48.5]}
29. Nxe4 {[%clk 0:01:11.8]} 29... Rb5 {[%clk 0:00:48.3]} 30. Nd2 {[%clk
0:01:04.9]} 30... Rc5 {[%clk 0:00:27.8]} 31. Rbc1 {[%clk 0:00:58]} 31... Ba6
{[%clk 0:00:26.2]} 32. b4 {[%clk 0:00:38.4]} 32... Rxd5 {[%clk 0:00:24.1]} 33.
Nf3 {[%clk 0:00:24.9]} 33... Rxd1 {[%clk 0:00:19.2]} 34. Rxd1 {[%clk 0:00:24.9]}
34... Bf4 {[%clk 0:00:20.1]} 35. Nd4 {[%clk 0:00:23.2]} 35... Kf6 {[%clk
0:00:18.7]} 36. b5 {[%clk 0:00:23]} 36... Bb7+ {[%clk 0:00:19]} 37. f3 {[%clk
0:00:22.5]} 37... c3 {[%clk 0:00:18.4]} 38. Nc2 {[%clk 0:00:21.9]} 38... Bd2
{[%clk 0:00:17.3]} 39. a6 {[%clk 0:00:21.5]} 39... Bd5 {[%clk 0:00:16.7]} 40.
Rb1 {[%clk 0:00:21.3]} 40... e5 {[%clk 0:00:15.7]} 41. b6 {[%clk 0:00:20.9]}
41... e4 {[%clk 0:00:16.6]} 42. b7 {[%clk 0:00:16.5]} 42... exf3+ {[%clk
0:00:16.7]} 43. Kf2 {[%clk 0:00:17.2]} 43... Be4 {[%clk 0:00:16.3]} 44. b8=Q
{[%clk 0:00:17.5]} 44... Bxc2 {[%clk 0:00:17.2]} 45. Qxd6+ {[%clk 0:00:16.3]}
45... Kg7 {[%clk 0:00:17.7]} 46. Qc7+ {[%clk 0:00:13.2]} 46... Kh6 {[%clk
0:00:18.2]} 47. Qb6 {[%clk 0:00:11.2]} 47... Bxb1 {[%clk 0:00:17.4]} 48. Qxb1
{[%clk 0:00:11.8]} 48... Kh5 {[%clk 0:00:17.9]} 49. Qc2 {[%clk 0:00:11.3]} 49...
Kxh4 {[%clk 0:00:18.3]} 50. Qxg6 {[%clk 0:00:10.9]} 50... Bf4 {[%clk 0:00:16.8]}
51. a7 {[%clk 0:00:10.4]} 51... c2 {[%clk 0:00:16.7]} 52. Qxc2 {[%clk
0:00:09.2]} 52... Kg4 {[%clk 0:00:17.6]} 53. Qg6+ {[%clk 0:00:08.2]} 53... Kh3
{[%clk 0:00:18]} 54. Qh5# {[%clk 0:00:08.1]} 1-0

[Event "Late-Titled-Tuesday-Blitz-April-16-2024"]
[Site "Chess.com"]
[Date "2024.04.16"]
[Round "9"]
[White "XiaoKangZhong"]
[Black "Misterfox120"]
[Result "0-1"]
[WhiteElo "2508"]
[BlackElo "2404"]
[TimeControl "180+1"]
[EndTime "15:44:26 PDT"]
[Termination "Misterfox120 won by resignation"]

1. e4 {[%clk 0:03:00.9]} 1... Nf6 {[%clk 0:02:55.3]} 2. e5 {[%clk 0:02:59.8]}
2... Nd5 {[%clk 0:02:55.2]} 3. Nc3 {[%clk 0:03:00.5]} 3... e6 {[%clk 0:02:53.6]}
4. Nxd5 {[%clk 0:02:56.2]} 4... exd5 {[%clk 0:02:54.5]} 5. Nf3 {[%clk
0:02:54.7]} 5... d6 {[%clk 0:02:53]} 6. d4 {[%clk 0:02:54.8]} 6... Nc6 {[%clk
0:02:40.6]} 7. Bb5 {[%clk 0:02:53.9]} 7... Bg4 {[%clk 0:02:39.3]} 8. h3 {[%clk
0:02:33.6]} 8... Bxf3 {[%clk 0:02:25.4]} 9. Qxf3 {[%clk 0:02:32.2]} 9... dxe5
{[%clk 0:02:26.3]} 10. dxe5 {[%clk 0:02:32]} 10... Bc5 {[%clk 0:02:24.9]} 11.
O-O {[%clk 0:02:20.2]} 11... O-O {[%clk 0:02:24.5]} 12. Qg3 {[%clk 0:02:20.1]}
12... Re8 {[%clk 0:01:30.4]} 13. Bh6 {[%clk 0:01:53.9]} 13... Bf8 {[%clk
0:01:27.5]} 14. Rfe1 {[%clk 0:01:48.6]} 14... Re6 {[%clk 0:01:15]} 15. Bf4
{[%clk 0:01:47.2]} 15... a6 {[%clk 0:01:10.6]} 16. Bd3 {[%clk 0:01:45.9]} 16...
Nb4 {[%clk 0:01:07.5]} 17. Bf5 {[%clk 0:01:44.9]} 17... Re8 {[%clk 0:01:02.5]}
18. c3 {[%clk 0:01:43.9]} 18... Nc6 {[%clk 0:00:59.4]} 19. Rad1 {[%clk
0:01:44.4]} 19... g6 {[%clk 0:00:52.4]} 20. Be4 {[%clk 0:01:41.1]} 20... Ne7
{[%clk 0:00:46.8]} 21. Bg5 {[%clk 0:01:38.1]} 21... c6 {[%clk 0:00:43.4]} 22.
Bf6 {[%clk 0:01:34.9]} 22... Bg7 {[%clk 0:00:34]} 23. Qg5 {[%clk 0:01:26.3]}
23... Qd7 {[%clk 0:00:14.2]} 24. Bf3 {[%clk 0:01:22.5]} 24... h6 {[%clk
0:00:09.2]} 25. Qh4 {[%clk 0:00:55.5]} 25... Bxf6 {[%clk 0:00:08]} 26. Qxf6
{[%clk 0:00:50]} 26... Qe6 {[%clk 0:00:05]} 27. Qf4 {[%clk 0:00:49.4]} 27... Kg7
{[%clk 0:00:02.8]} 28. Bg4 {[%clk 0:00:49.6]} 28... Nf5 {[%clk 0:00:03.3]} 29.
Bxf5 {[%clk 0:00:47.7]} 29... Qxf5 {[%clk 0:00:04.2]} 30. Qxf5 {[%clk
0:00:46.7]} 30... gxf5 {[%clk 0:00:05.1]} 31. f4 {[%clk 0:00:45.4]} 31... Re6
{[%clk 0:00:05.3]} 32. Re3 {[%clk 0:00:43.9]} 32... Rae8 {[%clk 0:00:05.6]} 33.
Kf2 {[%clk 0:00:43.8]} 33... f6 {[%clk 0:00:05.8]} 34. Rg3+ {[%clk 0:00:42.6]}
34... Kf7 {[%clk 0:00:05.8]} 35. exf6 {[%clk 0:00:42.1]} 35... Re2+ {[%clk
0:00:06.2]} 36. Kg1 {[%clk 0:00:41.9]} 36... Rxb2 {[%clk 0:00:06.3]} 37. c4
{[%clk 0:00:39.5]} 37... Rd8 {[%clk 0:00:02.2]} 38. a4 {[%clk 0:00:37.5]} 38...
Kxf6 {[%clk 0:00:02.3]} 39. cxd5 {[%clk 0:00:35.7]} 39... Rxd5 {[%clk
0:00:03.2]} 40. Rxd5 {[%clk 0:00:34.4]} 40... cxd5 {[%clk 0:00:04.1]} 41. Rd3
{[%clk 0:00:34.8]} 41... Rb4 {[%clk 0:00:04.6]} 42. Rxd5 {[%clk 0:00:33.6]}
42... Rxa4 {[%clk 0:00:05.2]} 43. Rd6+ {[%clk 0:00:33.9]} 43... Ke7 {[%clk
0:00:04.8]} 44. Rxh6 {[%clk 0:00:33.6]} 44... Rb4 {[%clk 0:00:05]} 45. Rh5
{[%clk 0:00:31]} 45... Kf6 {[%clk 0:00:05.2]} 46. Rh6+ {[%clk 0:00:31.5]} 46...
Kg7 {[%clk 0:00:05.3]} 47. Rd6 {[%clk 0:00:28.3]} 47... a5 {[%clk 0:00:04.9]}
48. Rd5 {[%clk 0:00:28.6]} 48... b5 {[%clk 0:00:04.2]} 49. Rxf5 {[%clk
0:00:28.4]} 49... a4 {[%clk 0:00:04.8]} 50. Rc5 {[%clk 0:00:28.5]} 50... a3
{[%clk 0:00:04.4]} 51. Rc7+ {[%clk 0:00:26.2]} 51... Kf6 {[%clk 0:00:04.2]} 52.
g4 {[%clk 0:00:25.7]} 52... a2 {[%clk 0:00:04]} 53. Rc6+ {[%clk 0:00:26.1]}
53... Ke7 {[%clk 0:00:04.1]} 0-1

[Event "Late-Titled-Tuesday-Blitz-April-16-2024"]
[Site "Chess.com"]
[Date "2024.04.16"]
[Round "9"]
[White "masterofpuppets2"]
[Black "Denmark2015"]
[Result "0-1"]
[WhiteElo "2497"]
[BlackElo "2607"]
[TimeControl "180+1"]
[EndTime "15:44:29 PDT"]
[Termination "Denmark2015 won on time"]

1. d4 {[%clk 0:03:00.9]} 1... e6 {[%clk 0:02:56.4]} 2. c4 {[%clk 0:03:01.1]}
2... f5 {[%clk 0:02:56.1]} 3. Nc3 {[%clk 0:03:00.9]} 3... Nf6 {[%clk 0:02:56.3]}
4. a3 {[%clk 0:03:00.5]} 4... Be7 {[%clk 0:02:56.2]} 5. Nf3 {[%clk 0:03:00.8]}
5... O-O {[%clk 0:02:56.1]} 6. g3 {[%clk 0:03:01.4]} 6... d6 {[%clk 0:02:56.5]}
7. Bg2 {[%clk 0:03:01.8]} 7... Ne4 {[%clk 0:02:56.7]} 8. Qc2 {[%clk 0:03:01.3]}
8... Nxc3 {[%clk 0:02:55.9]} 9. Qxc3 {[%clk 0:03:00.3]} 9... a5 {[%clk
0:02:55.7]} 10. b3 {[%clk 0:02:58.8]} 10... Nc6 {[%clk 0:02:54.4]} 11. Bb2
{[%clk 0:02:58.9]} 11... Bf6 {[%clk 0:02:54.4]} 12. Qd2 {[%clk 0:02:45.4]} 12...
e5 {[%clk 0:02:53.6]} 13. d5 {[%clk 0:02:45.8]} 13... Nb8 {[%clk 0:02:52.5]} 14.
O-O {[%clk 0:02:44.1]} 14... Nd7 {[%clk 0:02:47.5]} 15. Qc2 {[%clk 0:02:33.6]}
15... Nc5 {[%clk 0:02:16.5]} 16. b4 {[%clk 0:02:27.7]} 16... Na6 {[%clk
0:02:05.8]} 17. Qb3 {[%clk 0:02:16.2]} 17... b6 {[%clk 0:02:02.9]} 18. e4 {[%clk
0:02:06.3]} 18... f4 {[%clk 0:01:53]} 19. Kh1 {[%clk 0:01:48.3]} 19... Qe8
{[%clk 0:01:46.3]} 20. gxf4 {[%clk 0:01:27.5]} 20... exf4 {[%clk 0:01:45.3]} 21.
Bxf6 {[%clk 0:01:27.9]} 21... Rxf6 {[%clk 0:01:45.4]} 22. Rae1 {[%clk
0:01:20.8]} 22... Bg4 {[%clk 0:01:10.3]} 23. e5 {[%clk 0:01:19]} 23... Rh6
{[%clk 0:01:08.9]} 24. Ng1 {[%clk 0:00:47.6]} 24... Qh5 {[%clk 0:01:00.1]} 25.
h3 {[%clk 0:00:42.7]} 25... Rf8 {[%clk 0:00:40.9]} 26. Bf3 {[%clk 0:00:31.9]}
26... dxe5 {[%clk 0:00:23.7]} 27. Bxg4 {[%clk 0:00:27.6]} 27... Qxg4 {[%clk
0:00:22.4]} 28. Qf3 {[%clk 0:00:26.4]} 28... Qf5 {[%clk 0:00:20.6]} 29. Re4
{[%clk 0:00:19.9]} 29... axb4 {[%clk 0:00:20]} 30. axb4 {[%clk 0:00:18.4]} 30...
Nxb4 {[%clk 0:00:19.6]} 31. Rfe1 {[%clk 0:00:19]} 31... Rh5 {[%clk 0:00:16.2]}
32. Rxe5 {[%clk 0:00:17.5]} 32... Qxe5 {[%clk 0:00:15.8]} 33. Rxe5 {[%clk
0:00:17.2]} 33... Rxe5 {[%clk 0:00:16.7]} 34. Ne2 {[%clk 0:00:14.8]} 34... Na6
{[%clk 0:00:11.5]} 35. Nd4 {[%clk 0:00:13.1]} 35... Nc5 {[%clk 0:00:10.5]} 36.
Kg2 {[%clk 0:00:07.6]} 36... h6 {[%clk 0:00:08.6]} 37. h4 {[%clk 0:00:07.5]}
37... Rf6 {[%clk 0:00:04.8]} 38. Kf1 {[%clk 0:00:03.7]} 38... Re4 {[%clk
0:00:05]} 39. Ne6 {[%clk 0:00:03.2]} 39... Rxc4 {[%clk 0:00:04.7]} 40. Nxc5
{[%clk 0:00:01.3]} 40... Rxc5 {[%clk 0:00:04.8]} 41. Qd3 {[%clk 0:00:01.5]}
41... Rd6 {[%clk 0:00:04.3]} 42. Qe4 {[%clk 0:00:01.9]} 42... Rcxd5 {[%clk
0:00:04.5]} 43. Qxf4 {[%clk 0:00:01.5]} 43... Rd4 {[%clk 0:00:04.8]} 44. Qe3
{[%clk 0:00:01.3]} 44... Kh7 {[%clk 0:00:03.9]} 45. Qe2 {[%clk 0:00:01]} 45...
Rxh4 {[%clk 0:00:01.7]} 0-1